bitfinex-derivatives/quotes_SOLF0:USTF0_20250411
["timestamp","ask_amount","ask_price","bid_price","bid_amount"]
[1744348072917,15.71075747,115.22,115.2,0.05689272]
[1744348073118,34.6,115.21,115.2,0.05689272]
[1744348074812,43.2865,115.21,115.2,0.05689272]
[1744348080123,50.31135747,115.21,115.2,0.05689272]
[1744348081821,43.2865,115.21,115.2,0.05689272]
[1744348085025,8.6882,115.19,115.16,8.69]
[1744348085225,15.71305747,115.19,115.17,3.82798342]
[1744348085421,15.71305747,115.19,115.16,8.69]
[1744348085924,7.02485747,115.19,115.14,12.82303317]
[1744348086119,7.02485747,115.19,115.15,3.82823641]
[1744348086319,41.37164945,115.18,115.16,3.82823641]
[1744348086516,50.06074945,115.18,115.15,8.691]
[1744348086716,50.06074945,115.18,115.16,3.88744643]
[1744348086921,50.06074945,115.18,115.16,0.05917676]
[1744348090429,7.02485747,115.17,115.11,4.3688]
[1744348090629,7.02485747,115.14,115.12,3.82782079]
[1744348090819,34.28,115.14,115.13,3.82782079]
[1744348091022,42.9722,115.14,115.13,3.82782079]
[1744348091225,42.9722,115.14,115.1,9.24125747]
[1744348091425,34.28,115.14,115.11,3.82657829]
[1744348091628,0.05902672,115.13,115.12,3.82657829]
[1744348092122,8.75162672,115.13,115.11,0.06503119]
[1744348092327,7.08388419,115.13,115.11,0.06503119]
[1744348093533,15.77688419,115.13,115.11,0.06503119]
[1744348093936,0.05902672,115.13,115.11,0.06503119]
[1744348095234,8.75162672,115.13,115.11,0.06503119]
[1744348095433,0.05902672,115.13,115.11,0.06503119]
[1744348096334,0.05902672,115.13,115.11,8.75873119]
[1744348097529,0.05902672,115.13,115.11,0.06503119]
[1744348097735,7.08388419,115.13,115.11,0.06503119]
[1744348098233,15.71815747,115.12,115.11,0.06503119]
[1744348098625,8.6933,115.12,115.11,0.06503119]
[1744348098927,15.71815747,115.12,115.11,0.06503119]
[1744348100438,7.02485747,115.12,115.11,0.06503119]
[1744348100931,8.6933,115.12,115.11,0.06503119]
[1744348101136,0.05902672,115.13,115.11,0.06503119]
[1744348102138,8.75172672,115.13,115.11,0.06503119]
[1744348102732,15.77658419,115.13,115.11,0.06503119]
[1744348102932,0.05902672,115.13,115.11,0.06503119]
[1744348103339,8.75202672,115.13,115.11,0.06503119]
[1744348103540,0.05902672,115.13,115.11,8.75903119]
[1744348103940,0.05902672,115.13,115.11,0.06503119]
[1744348104838,0.05902672,115.13,115.11,8.75873119]
[1744348105041,0.05902672,115.13,115.11,0.06503119]
[1744348105441,8.75172672,115.13,115.11,0.06503119]
[1744348105741,0.05902672,115.13,115.11,0.06503119]
[1744348105941,0.05902672,115.13,115.11,8.75863119]
[1744348107740,8.75162672,115.13,115.11,8.75863119]
[1744348108745,8.75162672,115.13,115.11,0.06503119]
[1744348109743,8.75162672,115.13,115.11,8.75903119]
[1744348109943,0.05902672,115.13,115.11,0.06503119]
[1744348110342,7.08388419,115.13,115.11,0.06503119]
[1744348110542,15.71815747,115.12,115.11,0.06503119]
[1744348111143,8.6933,115.12,115.11,0.06503119]
[1744348113148,15.77678419,115.13,115.11,0.06503119]
[1744348113648,8.6933,115.12,115.11,0.06503119]
[1744348116851,8.75202672,115.13,115.11,0.06503119]
[1744348117044,0.05902672,115.13,115.11,0.06503119]
[1744348118350,8.75172672,115.13,115.11,0.06503119]
[1744348119454,8.6933,115.12,115.11,0.06503119]
[1744348119657,0.05902672,115.13,115.11,0.06503119]
[1744348120358,8.75182672,115.13,115.11,0.06503119]
[1744348121558,0.05902672,115.13,115.11,8.75843119]
[1744348122461,0.05902672,115.13,115.11,0.06503119]
[1744348122761,7.02485747,115.12,115.11,0.06503119]
[1744348123260,15.77718419,115.13,115.11,0.06503119]
[1744348123463,7.08388419,115.13,115.11,0.06503119]
[1744348123656,7.02485747,115.12,115.01,357.0]
[1744348123858,7.02485747,115.1,115.04,7.02485747]
[1744348124158,7.02485747,115.1,115.05,10.84035825]
[1744348124353,7.02485747,115.1,115.06,8.6975]
[1744348124354,8.6957,115.09,115.06,8.6975]
[1744348124561,7.02485747,115.1,115.06,8.6975]
[1744348124758,0.06280528,115.09,115.07,0.03425137]
[1744348125361,0.06280528,115.09,115.07,8.73125137]
[1744348126364,0.06280528,115.09,115.07,0.03425137]
[1744348126365,8.75840528,115.09,115.07,0.03425137]
[1744348126658,33.96,115.08,115.07,0.03425137]
[1744348129167,33.96,115.08,115.07,8.73135137]
[1744348130266,26.9652,115.08,115.07,15.75620884]
[1744348130462,0.06280528,115.09,115.08,8.6963]
[1744348130671,0.06280528,115.09,115.07,0.03425137]
[1744348131062,0.06280528,115.09,115.07,8.73085137]
[1744348131366,0.06280528,115.09,115.07,0.03425137]
[1744348131565,0.06280528,115.09,115.07,7.05910884]
[1744348132068,0.06280528,115.09,115.08,19.54021055]
[1744348132465,0.06280528,115.09,115.08,21.81761055]
[1744348133069,0.06280528,115.09,115.08,10.9737]
[1744348133370,0.06280528,115.09,115.08,14.79603478]
[1744348134466,0.06280528,115.09,115.08,14.79765237]
[1744348135372,0.06280528,115.09,115.08,21.82250984]
[1744348136174,42.6529,115.13,115.1,8.6943]
[1744348136474,42.6529,115.13,115.1,15.71915747]
[1744348137275,42.71725539,115.13,115.1,15.78279545]
[1744348137471,34.02435539,115.13,115.11,8.6936]
[1744348137672,34.02435539,115.13,115.1,7.08849545]
[1744348137868,34.02435539,115.13,115.11,8.6939]
[1744348138278,34.02435539,115.13,115.1,0.06363798]
[1744348138777,42.71725539,115.13,115.11,8.6939]
[1744348138978,42.71725539,115.13,115.1,0.06363798]
[1744348139677,8.6934,115.12,115.1,0.06363798]
[1744348140073,7.02485747,115.11,115.1,0.06363798]
[1744348140280,7.02485747,115.11,115.03,7.02485747]
[1744348140581,7.02485747,115.08,115.04,3.82661067]
[1744348140879,42.6574,115.07,115.05,3.82661067]
[1744348141078,42.6574,115.07,115.04,8.6993]
[1744348141376,34.02356311,115.07,115.05,3.82604517]
[1744348141579,34.02356311,115.07,115.04,8.73271866]
[1744348141778,34.02356311,115.07,115.05,3.82621277]
[1744348141972,34.02356311,115.07,115.04,8.73271866]
[1744348142172,42.72116311,115.07,115.04,8.73271866]
[1744348142371,34.02356311,115.07,115.04,8.73271866]
[1744348142777,42.72076311,115.07,115.04,8.73271866]
[1744348143378,7.02485747,115.05,115.04,0.03341866]
[1744348144081,41.04842058,115.07,115.04,0.03341866]
[1744348144280,7.02485747,115.06,115.04,0.03341866]
[1744348145178,15.72345747,115.05,115.04,0.03341866]
[1744348145880,41.04842058,115.07,115.04,0.03341866]
[1744348146384,8.6983,115.06,115.04,0.03341866]
[1744348149483,7.02485747,115.06,115.04,0.03341866]
[1744348150182,7.02485747,115.05,115.04,0.03341866]
[1744348150485,7.02485747,115.04,114.99,7.02485747]
[1744348150682,33.68,115.03,114.99,7.02485747]
[1744348150977,33.68,115.03,115.01,8.7015]
[1744348151179,33.68,115.03,115.0,7.02485747]
[1744348151383,33.74576766,115.03,115.0,7.02485747]
[1744348151684,33.74576766,115.03,115.02,8.7009]
[1744348152684,0.06576766,115.03,115.02,8.7009]
[1744348153085,0.06576766,115.03,115.01,8.7013]
[1744348157283,0.06576766,115.03,115.01,8.7016]
[1744348159496,0.06576766,115.03,115.02,8.7009]
[1744348159791,0.06576766,115.03,115.02,15.72575747]
[1744348160190,0.06576766,115.03,115.02,8.7009]
[1744348163687,0.06576766,115.03,115.02,7.02485747]
[1744348163991,0.06576766,115.03,115.02,10.83831544]
[1744348164888,0.06576766,115.03,115.02,19.53921544]
[1744348165095,0.06576766,115.03,115.02,19.53985961]
[1744348169493,42.3767,115.08,115.05,8.6984]
[1744348170599,42.44065923,115.08,115.05,0.06435452]
[1744348170901,8.6972,115.07,115.05,0.06435452]
[1744348178804,33.74395923,115.08,115.05,0.06435452]
[1744348179202,33.74395923,115.08,115.06,8.6978]
[1744348180005,0.06395923,115.08,115.06,8.6978]
[1744348180305,42.06025923,115.08,115.06,8.6978]
[1744348180604,42.06025923,115.08,115.05,8.76255452]
[1744348181108,33.36395923,115.08,115.06,8.6978]
[1744348181402,33.36395923,115.08,115.05,0.06435452]
[1744348181905,42.06035923,115.08,115.05,8.76235452]
[1744348186608,42.06035923,115.08,115.06,3.8334377]
[1744348186803,42.06035923,115.08,115.05,8.76235452]
[1744348187006,42.06035923,115.08,115.06,3.83343771]
[1744348187304,42.06035923,115.08,115.05,8.76235452]
[1744348187607,42.06035923,115.08,115.06,3.83334026]
[1744348187808,42.06035923,115.08,115.05,8.76235452]
[1744348188009,42.06035923,115.08,115.06,3.83339161]
[1744348188212,42.06035923,115.08,115.05,8.76235452]
[1744348188413,42.06035923,115.08,115.06,3.83310205]
[1744348188702,42.06035923,115.08,115.05,8.76235452]
[1744348188902,42.06035923,115.08,115.06,3.83310205]
[1744348189104,42.06035923,115.08,115.06,8.6978]
[1744348189402,42.06035923,115.08,115.05,0.06435452]
[1744348189604,42.06035923,115.08,115.06,3.83281482]
[1744348189809,33.36395923,115.08,115.05,0.06435452]
[1744348190012,7.02485747,115.06,115.05,0.06435452]
[1744348190607,15.72265747,115.06,115.05,0.06435452]
[1744348195408,8.6978,115.06,115.05,0.06435452]
[1744348195711,15.72265747,115.06,115.05,0.06435452]
[1744348197014,8.6994,115.04,115.0,1.51278039]
[1744348197209,40.32485747,115.05,115.01,3.83375337]
[1744348197403,40.32485747,115.05,115.02,3.83375337]
[1744348197608,7.02485747,115.03,114.98,7.02485747]
[1744348197910,7.02485747,115.03,114.99,3.8336484]
[1744348198109,7.02485747,115.03,115.0,3.8336484]
[1744348198311,0.05572702,115.02,115.01,3.8336484]
[1744348198706,0.05572702,115.02,115.0,8.7022]
[1744348199012,15.78168449,115.02,114.97,41.85790095]
[1744348199214,8.75682702,115.02,114.98,3.83346439]
[1744348199413,8.75682702,115.02,114.99,3.83346439]
[1744348199712,8.75682702,115.02,114.98,8.7035]
[1744348199914,8.75682702,115.02,114.99,3.8321421]
[1744348200114,8.75682702,115.02,114.97,41.85790095]
[1744348200314,0.05572702,115.02,114.98,10.85561585]
[1744348200617,0.05572702,115.02,114.99,10.85561585]
[1744348200809,0.05572702,115.02,114.97,34.83330666]
[1744348200810,0.05572702,115.02,115.0,3.83075838]
[1744348201010,0.05572702,115.02,114.97,40.34485747]
[1744348201011,7.08058449,115.02,114.97,40.34485747]
[1744348201212,7.08058449,115.02,114.98,3.82973599]
[1744348201517,0.05572702,115.02,115.0,7.02485747]
[1744348201714,0.05572702,115.02,115.01,3.82973599]
[1744348203123,0.05572702,115.02,115.01,21.85635127]
[1744348203421,0.05572702,115.02,115.01,21.85571529]
[1744348204520,0.05572702,115.02,115.01,28.88057276]
[1744348205514,45.22297173,115.05,115.01,20.17897276]
[1744348205719,45.22297173,115.05,115.02,20.17874377]
[1744348205914,11.92297173,115.05,115.04,7.02485747]
[1744348206125,11.92297173,115.05,115.04,19.55330115]
[1744348206322,130.94376605,115.06,115.04,20.17891643]
[1744348206626,11.96571529,115.08,115.05,10.8531463]
[1744348206814,9.6e-07,115.06,115.05,8.6986]
[1744348207021,11.96571529,115.08,115.05,13.15265281]
[1744348207321,11.96571529,115.08,115.07,8.6971]
[1744348207517,11.96571529,115.08,115.07,12.52473753]
[1744348207714,11.96571529,115.08,115.07,21.84975281]
[1744348207917,11.96571529,115.08,115.07,28.87461028]
[1744348208724,124.00809888,115.09,115.08,8.6963]
[1744348208924,124.00809888,115.09,115.08,19.548795]
[1744348209317,124.00809888,115.09,115.08,28.87381028]
[1744348209927,41.7722,115.14,115.11,8.6939]
[1744348210830,41.7722,115.14,115.12,9.32501528]
[1744348211129,41.83475323,115.14,115.12,9.38049277]
[1744348211331,33.14255323,115.14,115.12,18.07369277]
[1744348211526,33.14255323,115.14,115.12,8.74867749]
[1744348212229,33.14255323,115.14,115.13,9.29997399]
[1744348214329,33.14255323,115.14,115.12,8.74867749]
[1744348218035,33.14255323,115.14,115.13,8.6926]
[1744348218235,0.06255323,115.14,115.13,17.96673224]
[1744348218429,0.06255323,115.14,115.13,24.99158971]
[1744348219033,33.06,115.17,115.16,8.6903]
[1744348220433,33.06,115.17,115.15,0.06577885]
[1744348220630,40.08485747,115.17,115.15,0.06577885]
[1744348220831,40.08485747,115.17,115.11,7.02485747]
[1744348220832,7.02485747,115.16,115.11,7.02485747]
[1744348221032,15.71525747,115.16,115.11,7.02485747]
[1744348221438,15.71525747,115.16,115.12,9.25850209]
[1744348221731,48.77465747,115.17,115.14,8.6917]
[1744348222038,41.80750514,115.17,115.14,8.75098441]
[1744348222237,33.11770514,115.17,115.14,8.75098441]
[1744348222641,41.80730514,115.17,115.14,8.75098441]
[1744348222934,33.11770514,115.17,115.14,0.05928441]
[1744348223239,7.02485747,115.16,115.14,0.05928441]
[1744348223440,7.02485747,115.15,115.14,0.05928441]
[1744348223633,7.02485747,115.16,115.14,0.05928441]
[1744348224240,15.71545747,115.16,115.14,0.05928441]
[1744348224740,40.14256261,115.17,115.14,0.05928441]
[1744348225041,48.83246261,115.17,115.14,8.75108441]
[1744348225743,33.11770514,115.17,115.14,0.05928441]
[1744348225941,33.11770514,115.17,115.14,7.08414188]
[1744348226241,33.11770514,115.17,115.14,0.05928441]
[1744348226638,33.11770514,115.17,115.15,8.691]
[1744348227136,33.11770514,115.17,115.14,7.08414188]
[1744348227442,33.11770514,115.17,115.16,8.6903]
[1744348230949,0.05770514,115.17,115.16,8.6903]
[1744348232846,0.05770514,115.17,115.15,8.6908]
[1744348233046,40.12256261,115.17,115.14,0.05928441]
[1744348233348,48.81246261,115.17,115.14,8.75068441]
[1744348233542,40.12256261,115.17,115.14,0.05928441]
[1744348234141,8.6906,115.16,115.14,0.05928441]
[1744348234647,48.81246261,115.17,115.14,8.75098441]
[1744348234947,40.12256261,115.17,115.14,8.75098441]
[1744348235149,48.81246261,115.17,115.14,8.75098441]
[1744348237944,33.09770514,115.17,115.14,7.08414188]
[1744348238144,33.09770514,115.17,115.15,7.02485747]
[1744348239554,33.09770514,115.17,115.16,8.6903]
[1744348241351,0.05770514,115.17,115.16,8.6903]
[1744348241745,0.05770514,115.17,115.16,15.71515747]
[1744348244452,0.05770514,115.17,115.16,24.96431504]
[1744348245350,35.66361002,115.21,115.19,8.6875]
[1744348246057,35.66361002,115.21,115.18,7.02485747]
[1744348246258,35.66361002,115.21,115.2,7.02485747]
[1744348246559,35.72053273,115.21,115.2,7.02485747]
[1744348246765,35.72053273,115.21,115.2,24.97334384]
[1744348247561,35.89934199,115.24,115.2,16.28604384]
[1744348247763,35.89934199,115.24,115.23,7.02485747]
[1744348247950,35.89934199,115.24,115.23,15.70985747]
[1744348248359,35.89934199,115.24,115.23,24.97104384]
[1744348249464,22.75334199,115.24,115.23,24.97104384]
[1744348250962,0.06395715,115.25,115.24,8.6843]
[1744348251163,0.06395715,115.25,115.24,24.97034384]
[1744348253663,0.06395715,115.25,115.24,9.26118637]
[1744348253864,7.08881462,115.25,115.24,2.27038637]
[1744348254064,7.08881462,115.25,115.22,0.05992243]
[1744348254258,8.6844,115.24,115.22,0.05992243]
[1744348254453,0.06395715,115.25,115.22,0.05992243]
[1744348255063,0.06395715,115.25,115.23,7.02485747]
[1744348255658,0.06395715,115.25,115.24,8.6843]
[1744348266167,690.1078,115.29,115.27,8.6815]
[1744348266471,2.1878,115.29,115.27,8.6815]
[1744348266770,33.2,115.3,115.25,10.96868532]
[1744348266965,33.2,115.3,115.28,8.6806]
[1744348267366,33.26254983,115.3,115.28,0.0654396]
[1744348268271,41.94264983,115.3,115.28,0.0654396]
[1744348268473,33.26254983,115.3,115.28,0.0654396]
[1744348269172,0.06254983,115.3,115.29,8.6805]
[1744348271874,0.06254983,115.3,115.28,8.7463396]
[1744348274378,8.74254983,115.3,115.28,0.0654396]
[1744348274580,0.06254983,115.3,115.28,0.0654396]
[1744348274974,8.6805,115.29,115.28,0.0654396]
[1744348275384,8.6822,115.27,115.24,43.21333396]
[1744348275680,8.6822,115.27,115.24,8.6839]
[1744348275879,37.5501,115.29,115.22,10.96868532]
[1744348276282,37.5501,115.29,115.25,8.6834]
[1744348276283,8.6817,115.28,115.25,8.6834]
[1744348276578,8.74306422,115.28,115.25,8.75002184]
[1744348277383,0.06136422,115.28,115.26,8.6827]
[1744348278078,0.06136422,115.28,115.27,8.682]
[1744348278480,0.06136422,115.28,115.26,8.6826]
[1744348279079,0.06136422,115.28,115.27,8.682]
[1744348279277,33.02,115.32,115.27,7.01351608]
[1744348279473,33.02,115.32,115.29,7.01351608]
[1744348279778,41.6987,115.32,115.29,8.6801]
[1744348280185,33.02,115.32,115.3,8.6796]
[1744348280373,33.08288042,115.32,115.3,8.6796]
[1744348281078,7.01351608,115.31,115.23,1.50956492]
[1744348281284,4.3255,115.31,115.27,7.01351608]
[1744348281485,4.3255,115.31,115.28,7.01351608]
[1744348281674,33.02,115.32,115.28,7.01351608]
[1744348281879,33.02,115.32,115.29,7.01351608]
[1744348282384,33.07842969,115.32,115.29,7.0801201]
[1744348283285,41.75682969,115.32,115.29,15.7602201]
[1744348283484,33.07842969,115.32,115.29,7.0801201]
[1744348283684,0.05842969,115.32,115.31,7.01351608]
[1744348283880,0.05842969,115.32,115.31,15.69251608]
[1744348284081,0.05842969,115.32,115.31,8.679]
[1744348286489,0.05842969,115.32,115.31,24.78844564]
[1744348287292,0.05842969,115.32,115.31,17.77492956]
[1744348288886,0.05842969,115.32,115.31,9.09592956]
[1744348289393,0.05842969,115.32,115.29,0.06660402]
[1744348289891,41.73662969,115.32,115.29,8.74660402]
[1744348290596,41.73662969,115.32,115.3,9.1165028]
[1744348291090,41.73662969,115.32,115.29,8.74660402]
[1744348291695,8.6794,115.31,115.29,0.06660402]
[1744348293496,8.6797,115.3,115.29,0.06660402]
[1744348293995,33.05842969,115.32,115.24,1.5091394]
[1744348294189,33.0,115.31,115.25,3.8113651]
[1744348294389,4.3593,115.3,115.25,8.683]
[1744348294596,8.6813,115.28,115.26,9.13084276]
[1744348294797,4.3593,115.3,115.26,9.13084276]
[1744348295096,0.06218734,115.28,115.26,9.18765917]
[1744348295296,41.682,115.27,115.26,0.05681641]
[1744348296290,33.0,115.27,115.26,0.05681641]
[1744348296690,0.06218734,115.28,115.26,9.18868487]
[1744348297295,0.06218734,115.28,115.27,9.13186846]
[1744348300702,0.06218734,115.28,115.27,17.81386846]
[1744348302406,0.06218734,115.28,115.27,9.13186846]
[1744348303521,8.74338734,115.28,115.27,9.13186846]
[1744348304200,0.06218734,115.28,115.27,9.13186846]
[1744348304400,0.06218734,115.28,115.27,17.81386846]
[1744348307708,0.06218734,115.28,115.27,9.13186846]
[1744348312006,0.06218734,115.28,115.27,16.14860226]
[1744348312205,8.74338734,115.28,115.27,9.13186846]
[1744348313310,0.06218734,115.28,115.27,9.13186846]
[1744348316105,8.74338734,115.28,115.27,9.13186846]
[1744348320408,8.682,115.27,115.26,0.05681641]
[1744348321103,8.682,115.27,115.26,9.20445176]
[1744348321611,0.06218734,115.28,115.26,16.22118556]
[1744348322012,0.06218734,115.28,115.26,7.07355021]
[1744348322211,0.06218734,115.28,115.26,15.75615021]
[1744348322608,0.06218734,115.28,115.27,9.14681907]
[1744348322913,8.74338734,115.28,115.27,9.14681907]
[1744348323414,0.06218734,115.28,115.27,9.14681907]
[1744348324818,45.69011201,115.32,115.27,19.98130479]
[1744348325008,45.69011201,115.32,115.29,7.0167338]
[1744348325207,45.69011201,115.32,115.3,7.0167338]
[1744348325511,45.69011201,115.32,115.31,9.14681907]
[1744348325911,45.69011201,115.32,115.31,16.16355287]
[1744348326112,33.82,115.32,115.31,9.14681907]
[1744348326310,33.82,115.32,115.31,16.16355287]
[1744348326909,11.93259567,115.33,115.31,24.84255287]
[1744348327519,11.93259567,115.33,115.31,15.6957338]
[1744348328116,20.61029567,115.33,115.3,15.75361217]
[1744348328713,8.74018366,115.33,115.31,9.14214028]
[1744348329616,8.74018366,115.33,115.32,9.14214028]
[1744348330418,15.75691746,115.33,115.32,9.14214028]
[1744348330619,8.679,115.31,115.3,0.05727837]
[1744348330821,40.3967338,115.31,115.26,9.1402338]
[1744348331122,8.6802,115.3,115.27,7.0167338]
[1744348331515,42.0594,115.31,115.28,7.0167338]
[1744348331815,42.0594,115.31,115.27,7.0167338]
[1744348332012,8.6798,115.3,115.28,0.06391758]
[1744348332217,0.06102595,115.3,115.28,0.06391758]
[1744348333224,8.6805,115.29,115.28,0.06391758]
[1744348338538,8.74112595,115.3,115.28,0.06391758]
[1744348339131,8.6805,115.29,115.28,0.06391758]
[1744348340032,42.0605,115.29,115.28,0.06391758]
[1744348340234,8.682,115.27,115.24,7.0167338]
[1744348341436,0.06636583,115.27,115.24,0.05695125]
[1744348341639,33.38,115.26,115.24,0.05695125]
[1744348342040,8.6835,115.25,115.24,0.05695125]
[1744348343041,8.6835,115.25,115.24,9.06106163]
[1744348345542,42.0631,115.26,115.24,9.06106163]
[1744348346041,42.0631,115.26,115.24,0.05695125]
[1744348348646,33.38,115.26,115.24,0.05695125]
[1744348348938,33.38,115.26,115.24,7.07368505]
[1744348349541,33.38,115.26,115.24,15.75748505]
[1744348349740,33.38,115.26,115.25,8.98888503]
[1744348350533,33.38,115.26,115.25,17.67238503]
[1744348350738,0.06636583,115.27,115.25,17.67238503]
[1744348350939,0.06636583,115.27,115.25,16.00561883]
[1744348351246,0.06636583,115.27,115.26,8.6828]
[1744348352748,0.06636583,115.27,115.26,17.67061263]
[1744348353347,0.06636583,115.27,115.26,8.6828]
[1744348354550,0.06636583,115.27,115.26,15.6995338]
[1744348357147,0.06636583,115.27,115.26,24.68534777]
[1744348357447,0.06636583,115.27,115.26,28.50095086]
[1744348358146,0.06636583,115.27,115.26,24.68534777]
[1744348358951,0.06636583,115.27,115.26,28.50049159]
[1744348359748,0.06636583,115.27,115.26,24.68534777]
[1744348360645,0.06636583,115.27,115.26,8.98581397]
[1744348361049,0.06636583,115.27,115.24,0.05695125]
[1744348361050,8.74886583,115.27,115.24,0.05695125]
[1744348361254,15.76559963,115.27,115.24,0.05695125]
[1744348361758,15.76559963,115.27,115.25,8.98653841]
[1744348361947,8.74886583,115.27,115.25,8.98653841]
[1744348362255,8.74886583,115.27,115.24,0.05695125]
[1744348363554,8.74886583,115.27,115.24,8.74085125]
[1744348364358,8.74886583,115.27,115.24,0.05695125]
[1744348364759,33.62,115.26,115.24,0.05695125]
[1744348365158,33.62,115.26,115.24,8.74105125]
[1744348366149,33.62,115.26,115.24,0.05695125]
[1744348366952,42.3029,115.26,115.24,0.05695125]
[1744348367361,33.62,115.26,115.24,8.74105125]
[1744348373654,33.62,115.26,115.24,0.05695125]
[1744348374263,42.3032,115.26,115.24,0.05695125]
[1744348380256,33.62,115.26,115.24,0.05695125]
[1744348380963,42.3031,115.26,115.24,0.05695125]
[1744348384270,33.62,115.26,115.24,8.74075125]
[1744348384472,33.62,115.26,115.24,15.75748505]
[1744348385571,33.62,115.26,115.25,9.00727841]
[1744348385969,33.62,115.26,115.25,24.70751221]
[1744348386371,0.06636583,115.27,115.25,19.84835605]
[1744348386673,0.06636583,115.27,115.26,16.02401221]
[1744348387071,0.06636583,115.27,115.26,24.70681221]
[1744348387268,0.06636583,115.27,115.26,28.53078898]
[1744348387971,33.62,115.29,115.28,8.6812]
[1744348388167,33.62,115.29,115.28,15.6979338]
[1744348388470,33.62,115.29,115.28,24.70521221]
[1744348389070,0.0660052,115.3,115.29,8.6805]
[1744348389371,0.0660052,115.3,115.29,15.6972338]
[1744348389562,0.0660052,115.3,115.29,19.51752763]
[1744348389763,0.0660052,115.3,115.29,28.52480604]
[1744348390069,81.02219334,115.32,115.31,8.679]
[1744348390272,47.60219334,115.32,115.31,24.70301221]
[1744348390773,33.42,115.35,115.32,8.6776]
[1744348390966,33.42,115.35,115.32,15.6943338]
[1744348391164,33.47554946,115.35,115.32,15.75049925]
[1744348391469,42.15154946,115.35,115.32,15.75049925]
[1744348391672,33.47554946,115.35,115.33,17.68467841]
[1744348391867,33.47554946,115.35,115.34,7.0167338]
[1744348392169,0.05554946,115.35,115.34,7.0167338]
[1744348392574,0.05554946,115.35,115.34,15.6934338]
[1744348393262,47.60219334,115.36,115.35,8.676]
[1744348393570,47.60219334,115.36,115.35,15.6927338]
[1744348393871,33.42,115.38,115.35,15.98120361]
[1744348394073,33.42,115.38,115.36,15.6915338]
[1744348394272,33.42,115.38,115.37,7.0167338]
[1744348394471,33.47749498,115.38,115.37,7.0167338]
[1744348394770,0.05749498,115.38,115.37,7.0167338]
[1744348395372,0.05749498,115.38,115.37,15.6912338]
[1744348398674,0.05749498,115.38,115.36,15.75829801]
[1744348399266,0.05749498,115.38,115.36,0.06666421]
[1744348399568,33.45749498,115.38,115.36,0.06666421]
[1744348399770,40.47422878,115.38,115.36,0.06666421]
[1744348399965,42.13169498,115.38,115.36,0.06666421]
[1744348402170,8.73169498,115.38,115.36,0.06666421]
[1744348402371,0.05749498,115.38,115.36,0.06666421]
[1744348404280,8.73129498,115.38,115.36,0.06666421]
[1744348404479,0.05749498,115.38,115.36,0.06666421]
[1744348405986,0.05749498,115.38,115.37,8.6745]
[1744348408184,0.05749498,115.38,115.36,15.75829801]
[1744348411189,0.05749498,115.38,115.36,0.06666421]
[1744348413497,8.73129498,115.38,115.36,0.06666421]
[1744348413994,8.6745,115.37,115.36,0.06666421]
[1744348414195,40.4167338,115.37,115.32,7.0167338]
[1744348414695,33.4,115.37,115.33,8.6771]
[1744348415291,42.0749,115.37,115.33,8.6771]
[1744348415497,0.06664193,115.36,115.34,0.06250628]
[1744348415791,0.06664193,115.36,115.34,7.07924008]
[1744348416597,0.06664193,115.36,115.35,15.6927338]
[1744348417696,0.06664193,115.36,115.35,8.676]
[1744348419593,0.06664193,115.36,115.35,15.6927338]
[1744348426610,0.06664193,115.36,115.35,8.676]
[1744348430504,0.06664193,115.36,115.35,17.64680682]
[1744348433212,0.06664193,115.36,115.35,8.97080682]
[1744348435114,0.06664193,115.36,115.35,12.79640794]
[1744348435304,0.06664193,115.36,115.35,21.47240794]
[1744348435503,0.06664193,115.36,115.35,28.48914174]
[1744348439216,0.06664193,115.36,115.35,28.49051617]
[1744348441816,0.06664193,115.36,115.35,21.47378237]
[1744348444219,33.18,115.4,115.35,12.79778237]
[1744348444518,33.18,115.4,115.37,7.0167338]
[1744348444722,33.18,115.4,115.37,15.6909338]
[1744348445215,41.8526,115.4,115.38,8.97080682]
[1744348445421,41.90887666,115.4,115.38,8.97080682]
[1744348445723,41.90887666,115.4,115.37,15.74571968]
[1744348446822,41.90887666,115.4,115.38,9.01799886]
[1744348447316,41.90887666,115.4,115.39,9.01799886]
[1744348450323,8.6737,115.38,115.37,0.05478588]
[1744348452227,8.6758,115.36,115.31,42.1367338]
[1744348452523,41.6958,115.36,115.32,12.5069413]
[1744348452723,8.6767,115.34,115.28,4.5444]
[1744348452924,7.0167338,115.34,115.3,8.6794]
[1744348453227,15.6949338,115.32,115.31,0.062185]
[1744348453426,7.0167338,115.32,115.27,7.0167338]
[1744348453629,11.5237338,115.32,115.28,3.82667226]
[1744348453827,11.5237338,115.32,115.27,7.0167338]
[1744348454028,11.5237338,115.32,115.28,3.82683377]
[1744348454228,11.5237338,115.32,115.27,7.0167338]
[1744348454434,8.6792,115.31,115.28,12.50375059]
[1744348454625,8.73774909,115.31,115.28,8.74275423]